[Event "FIDE Women World Rapid 2024"]
[Site "New York"]
[Date "2024.12.27"]
[Round "7.1"]
[White "Kosteniuk, Alexandra"]
[Black "Ju, Wenjun"]
[Result "1/2-1/2"]
[ECO "C56"]
[WhiteElo "2484"]
[BlackElo "2563"]
[Annotator "ChessBase"]
[PlyCount "58"]
[EventDate "2024.12.14"]
[EventType "swiss"]
[EventCountry "USA"]
[SourceTitle "playchess.com"]
[Source "ChessBase"]
[SourceQuality "1"]
[TimeControl "900+10"]

1. e4 {[%emt 0:00:02]} e5 {[%emt 0:00:01]} 2. Nf3 {[%emt 0:00:02]} Nc6 {[%emt 0:00:01]} 3. Bc4 {[%emt 0:00:02]} Nf6 {[%emt 0:00:02]} 4. d4 {[%emt 0:00:05]} exd4 {[%emt 0:00:14]} 5. e5 {[%emt 0:00:02]} d5 {[%emt 0:00:12]} 6. Bb5 {[%emt 0:00:03]} Ne4 {[%emt 0:00:02]} 7. Nxd4 {[%emt 0:00:06]} Bc5 {[%emt 0:00:37]} 8. Be3 {[%emt 0:00:13]} O-O {[%emt 0:00:31]} 9. Nxc6 {[%emt 0:00:10]} bxc6 {[%emt 0:00:08]} 10. Bxc5 {[%emt 0:00:18]} Nxc5 {[%emt 0:00:03]} 11. Bxc6 {[%emt 0:00:03]} Rb8 {[%emt 0:00:12]} 12. Qxd5 {[%emt 0:00:26]} Qe7 {[%emt 0:00:50]} 13. O-O {[%emt 0:00:17]} Rxb2 {[%emt 0:01:04]} 14. Nc3 {[%emt 0:00:50]} Rxc2 {[%emt 0:00:37]} 15. Qd4 {[%emt 0:00:36]} Ne6 {[%emt 0:00:57]} 16. Qd3 {[%emt 0:00:37]} Rb2 {[%emt 0:00:07]} 17. Nd5 {[%emt 0:00:34]} Qc5 {[%emt 0:00:53]} 18. Rac1 {[%emt 0:03:50]} Qd4 {[%emt 0:00:02]} 19. Qa3 {[%emt 0:02:41]} Qxe5 {[%emt 0:01:01]} 20. Ne7+ {[%emt 0:00:15]} Kh8 {[%emt 0:00:09]} 21. Nxc8 {[%emt 0:00:14]} Rxc8 {[%emt 0:00:51]} 22. Bd7 {[%emt 0:00:13]} Rcb8 {[%emt 0:01:25]} 23. Bxe6 {[%emt 0:00:18]} Qxe6 {[%emt 0:00:29]} 24. Qxa7 {[%emt 0:00:07]} Qxa2 {[%emt 0:00:29]} 25. Qxa2 {[%emt 0:01:20]} Rxa2 {[%emt 0:00:02]} 26. Rxc7 {[%emt 0:00:01]} Kg8 {[%emt 0:00:09]} 27. Rfc1 {[%emt 0:00:16]} g6 {[%emt 0:00:12]} 28. Rc8+ {[%emt 0:00:02]} Rxc8 {[%emt 0:00:02]} 29. Rxc8+ {[%emt 0:00:01]} Kg7 {[%emt 0:00:12]} 1/2-1/2

[Event "FIDE Women World Rapid 2024"]
[Site "New York"]
[Date "2024.12.27"]
[Round "7.1"]
[White "Yu, Jennifer"]
[Black "Peycheva, Gergana"]
[Result "1/2-1/2"]
[ECO "A35"]
[WhiteElo "2283"]
[BlackElo "2212"]
[Annotator "ChessBase"]
[PlyCount "107"]
[EventDate "2024.12.14"]
[EventType "swiss"]
[EventCountry "USA"]
[SourceTitle "playchess.com"]
[Source "ChessBase"]
[SourceQuality "1"]
[TimeControl "900+10"]

1. c4 {[%emt 0:00:02]} c5 {[%emt 0:00:02]} 2. Nf3 {[%emt 0:00:04]} Nc6 {[%emt 0:00:01]} 3. Nc3 {[%emt 0:00:06]} g6 {[%emt 0:00:03]} 4. e3 {[%emt 0:00:35]} Nf6 {[%emt 0:00:02]} 5. d4 {[%emt 0:00:13]} cxd4 {[%emt 0:00:03]} 6. Nxd4 {[%emt 0:00:53]} Bg7 {[%emt 0:00:13]} 7. Be2 {[%emt 0:00:23]} O-O {[%emt 0:00:24]} 8. O-O {[%emt 0:00:02]} d5 {[%emt 0:00:54]} 9. cxd5 {[%emt 0:01:02]} Nxd5 {[%emt 0:00:02]} 10. Nxc6 {[%emt 0:00:28]} bxc6 {[%emt 0:00:11]} 11. Na4 {[%emt 0:00:53]} Nb4 {[%emt 0:01:50]} 12. Bd2 {[%emt 0:01:09]} Rb8 {[%emt 0:00:20]} 13. Bc3 {[%emt 0:01:16]} Be6 {[%emt 0:00:50]} 14. Nc5 {[%emt 0:02:34]} Qxd1 {[%emt 0:03:53]} 15. Rfxd1 {[%emt 0:00:06]} Bxc3 {[%emt 0:00:37]} 16. bxc3 {[%emt 0:00:04]} Nd5 {[%emt 0:00:01]} 17. Nxe6 {[%emt 0:01:59]} fxe6 {[%emt 0:00:01]} 18. Bg4 {[%emt 0:00:44]} Kf7 {[%emt 0:00:06]} 19. c4 {[%emt 0:00:31]} Nf6 {[%emt 0:01:45]} 20. Bf3 {[%emt 0:00:05]} Rb4 {[%emt 0:00:03]} 21. Bxc6 {[%emt 0:00:35]} Rxc4 {[%emt 0:00:02]} 22. Bb5 {[%emt 0:00:51]} Rc5 {[%emt 0:00:32]} 23. a4 {[%emt 0:00:07]} Rfc8 {[%emt 0:00:15]} 24. h3 {[%emt 0:00:07]} Ne4 {[%emt 0:00:11]} 25. Rd4 {[%emt 0:00:19]} Nc3 {[%emt 0:00:55]} 26. Rf4+ {[%emt 0:01:16]} Kg7 {[%emt 0:00:33]} 27. Bf1 {[%emt 0:00:26]} Rb8 {[%emt 0:00:18]} 28. Rd4 {[%emt 0:00:41]} Kf6 {[%emt 0:00:14]} 29. a5 {[%emt 0:00:10]} Nd5 {[%emt 0:01:15]} 30. e4 {[%emt 0:00:47]} Nc7 {[%emt 0:00:11]} 31. a6 {[%emt 0:00:44]} Rb6 {[%emt 0:00:30]} 32. Rd8 {[%emt 0:00:15]} e5 {[%emt 0:01:00]} 33. Rc8 {[%emt 0:00:36]} Kg7 {[%emt 0:01:25]} 34. Rd1 {[%emt 0:00:13]} Rbc6 {[%emt 0:01:01]} 35. Rb8 {[%emt 0:00:25]} Nxa6 {[%emt 0:00:35]} 36. Rb7 {[%emt 0:00:02]} Nc7 {[%emt 0:00:18]} 37. Rxa7 {[%emt 0:00:02]} Rc1 {[%emt 0:00:15]} 38. Rxc1 {[%emt 0:00:22]} Rxc1 {[%emt 0:00:01]} 39. f3 {[%emt 0:00:01]} Kf7 {[%emt 0:00:18]} 40. Kf2 {[%emt 0:00:04]} Ne6 {[%emt 0:00:04]} 41. Ra5 {[%emt 0:00:26]} Kf6 {[%emt 0:00:03]} 42. Ra6 {[%emt 0:00:02]} Kf7 {[%emt 0:00:02]} 43. Ra4 {[%emt 0:00:09]} Nd4 {[%emt 0:00:40]} 44. Bc4+ {[%emt 0:00:13]} Kg7 {[%emt 0:00:02]} 45. Bd3 {[%emt 0:00:17]} Ne6 {[%emt 0:00:09]} 46. Ra5 {[%emt 0:00:09]} Nf4 {[%emt 0:00:17]} 47. Bf1 {[%emt 0:00:03]} Kf6 {[%emt 0:00:15]} 48. Ra6+ {[%emt 0:00:02]} Kg7 {[%emt 0:00:02]} 49. Ra7 {[%emt 0:00:02]} Kf6 {[%emt 0:00:06]} 50. Ra6+ {[%emt 0:00:03]} Kf7 {[%emt 0:00:10]} 51. Ra5 {[%emt 0:00:07]} Kf6 {[%emt 0:00:07]} 52. Ra6+ {[%emt 0:00:03]} Kf7 {[%emt 0:00:02]} 53. Ra5 {[%emt 0:00:05]} Kf6 {[%emt 0:00:18]} 54. Ra6+ {[%emt 0:00:19]} 1/2-1/2

[Event "FIDE Women World Rapid 2024"]
[Site "New York"]
[Date "2024.12.27"]
[Round "7.2"]
[White "Lagno, Kateryna"]
[Black "Assaubayeva, Bibisara"]
[Result "1/2-1/2"]
[ECO "B23"]
[WhiteElo "2515"]
[BlackElo "2492"]
[Annotator "ChessBase"]
[PlyCount "73"]
[EventDate "2024.12.14"]
[EventType "swiss"]
[EventCountry "USA"]
[SourceTitle "playchess.com"]
[Source "ChessBase"]
[SourceQuality "1"]
[TimeControl "900+10"]

1. e4 {[%emt 0:00:02]} c5 {[%emt 0:00:01]} 2. Nc3 {[%emt 0:00:01]} a6 {[%emt 0:00:02]} 3. Nge2 {[%emt 0:00:12]} d6 {[%emt 0:00:22]} 4. g3 {[%emt 0:00:05]} b5 {[%emt 0:00:18]} 5. Bg2 {[%emt 0:01:43]} Bb7 {[%emt 0:00:05]} 6. a4 {[%emt 0:00:42]} b4 {[%emt 0:00:15]} 7. Nd5 {[%emt 0:00:01]} e6 {[%emt 0:01:00]} 8. Ne3 {[%emt 0:00:02]} Nf6 {[%emt 0:00:23]} 9. d3 {[%emt 0:00:10]} Nc6 {[%emt 0:01:52]} 10. O-O {[%emt 0:01:10]} Be7 {[%emt 0:00:46]} 11. c4 {[%emt 0:02:32]} Qc7 {[%emt 0:03:04]} 12. f4 {[%emt 0:01:04]} a5 {[%emt 0:01:18]} 13. b3 {[%emt 0:00:31]} Nd7 {[%emt 0:00:28]} 14. f5 {[%emt 0:00:59]} Bf6 {[%emt 0:00:23]} 15. Ra2 {[%emt 0:00:08]} O-O-O {[%emt 0:01:28]} 16. Ng4 {[%emt 0:02:34]} Bd4+ {[%emt 0:02:34]} 17. Nxd4 {[%emt 0:00:11]} Nxd4 {[%emt 0:00:08]} 18. fxe6 {[%emt 0:00:22]} fxe6 {[%emt 0:00:02]} 19. Bg5 {[%emt 0:01:04]} Rdf8 {[%emt 0:00:22]} 20. Raf2 {[%emt 0:00:27]} Rxf2 {[%emt 0:00:18]} 21. Rxf2 {[%emt 0:00:14]} h6 {[%emt 0:00:40]} 22. Bc1 {[%emt 0:00:15]} Qd8 {[%emt 0:00:24]} 23. h4 {[%emt 0:01:46]} h5 {[%emt 0:00:33]} 24. Bg5 {[%emt 0:00:15]} Qe8 {[%emt 0:00:11]} 25. Ne3 {[%emt 0:00:06]} Ne5 {[%emt 0:00:28]} 26. Bh3 {[%emt 0:00:16]} Kb8 {[%emt 0:00:10]} 27. Ng2 {[%emt 0:00:31]} g6 {[%emt 0:00:57]} 28. Be3 {[%emt 0:00:13]} Nec6 {[%emt 0:00:49]} 29. Nf4 {[%emt 0:00:12]} Bc8 {[%emt 0:00:04]} 30. Ne2 {[%emt 0:00:14]} Rf8 {[%emt 0:00:17]} 31. Bxd4 {[%emt 0:00:46]} cxd4 {[%emt 0:00:15]} 32. Qf1 {[%emt 0:00:02]} Rxf2 {[%emt 0:00:06]} 33. Qxf2 {[%emt 0:00:01]} e5 {[%emt 0:00:02]} 34. Bxc8 {[%emt 0:00:13]} Kxc8 {[%emt 0:00:05]} 35. Qf6 {[%emt 0:00:13]} Kd7 {[%emt 0:00:01]} 36. Kg2 {[%emt 0:00:13]} Qe6 {[%emt 0:00:06]} 37. Qf3 {[%emt 0:00:24]} 1/2-1/2

[Event "FIDE Women World Rapid 2024"]
[Site "New York"]
[Date "2024.12.27"]
[Round "7.2"]
[White "Injac, Teodora"]
[Black "Beydullayeva, Govhar"]
[Result "1/2-1/2"]
[ECO "A14"]
[WhiteElo "2441"]
[BlackElo "2404"]
[Annotator "ChessBase"]
[PlyCount "111"]
[EventDate "2024.12.14"]
[EventType "swiss"]
[EventCountry "USA"]
[SourceTitle "playchess.com"]
[Source "ChessBase"]
[SourceQuality "1"]
[TimeControl "900+10"]

1. Nf3 {[%emt 0:00:03]} d5 {[%emt 0:00:01]} 2. g3 {[%emt 0:00:09]} Nf6 {[%emt 0:00:02]} 3. Bg2 {[%emt 0:00:04]} e6 {[%emt 0:00:01]} 4. O-O {[%emt 0:00:09]} Be7 {[%emt 0:00:03]} 5. c4 {[%emt 0:01:25]} O-O {[%emt 0:00:04]} 6. b3 {[%emt 0:00:10]} c5 {[%emt 0:00:08]} 7. e3 {[%emt 0:00:40]} Nc6 {[%emt 0:00:22]} 8. Bb2 {[%emt 0:00:21]} d4 {[%emt 0:01:52]} 9. exd4 {[%emt 0:00:03]} cxd4 {[%emt 0:00:00]} 10. Re1 {[%emt 0:00:04]} Re8 {[%emt 0:00:22]} 11. a3 {[%emt 0:02:37]} a5 {[%emt 0:00:04]} 12. d3 {[%emt 0:00:04]} h6 {[%emt 0:00:21]} 13. Nbd2 {[%emt 0:00:16]} Bc5 {[%emt 0:00:38]} 14. Ne5 {[%emt 0:02:08]} Nxe5 {[%emt 0:01:03]} 15. Rxe5 {[%emt 0:00:02]} Nd7 {[%emt 0:03:20]} 16. Re2 {[%emt 0:00:18]} e5 {[%emt 0:00:04]} 17. Qe1 {[%emt 0:01:20]} Ra6 {[%emt 0:05:14]} 18. Nf3 {[%emt 0:01:41]} Rae6 {[%emt 0:00:10]} 19. b4 {[%emt 0:00:02]} Bf8 {[%emt 0:00:34]} 20. Qd2 {[%emt 0:02:36]} g6 {[%emt 0:00:39]} 21. Rae1 {[%emt 0:00:08]} Bg7 {[%emt 0:00:03]} 22. Qc2 {[%emt 0:01:10]} Nb6 {[%emt 0:01:13]} 23. Nd2 {[%emt 0:01:18]} R6e7 {[%emt 0:01:08]} 24. h3 {[%emt 0:00:02]} Kh7 {[%emt 0:00:59]} 25. bxa5 {[%emt 0:01:44]} Nd7 {[%emt 0:00:07]} 26. Ne4 {[%emt 0:00:03]} Nf6 {[%emt 0:00:27]} 27. Nxf6+ {[%emt 0:00:41]} Bxf6 {[%emt 0:00:01]} 28. Qd2 {[%emt 0:00:14]} Qc7 {[%emt 0:00:15]} 29. Bc1 {[%emt 0:00:07]} Bg7 {[%emt 0:00:26]} 30. Qb4 {[%emt 0:00:01]} f5 {[%emt 0:00:06]} 31. Bd2 {[%emt 0:00:12]} e4 {[%emt 0:00:14]} 32. dxe4 {[%emt 0:00:12]} d3 {[%emt 0:00:01]} 33. Re3 {[%emt 0:00:19]} Bd4 {[%emt 0:00:21]} 34. Rxd3 {[%emt 0:00:02]} Bc5 {[%emt 0:00:00]} 35. Qb2 {[%emt 0:00:21]} fxe4 {[%emt 0:00:04]} 36. Rd5 {[%emt 0:00:08]} e3 {[%emt 0:00:27]} 37. fxe3 {[%emt 0:00:10]} Be6 {[%emt 0:00:11]} 38. Rxc5 {[%emt 0:00:08]} Qxc5 {[%emt 0:00:01]} 39. Bb4 {[%emt 0:00:09]} Qxc4 {[%emt 0:00:02]} 40. Bxe7 {[%emt 0:00:04]} Rxe7 41. Qd4 {[%emt 0:00:21]} Qc7 {[%emt 0:00:09]} 42. Kh2 {[%emt 0:00:09]} Qxa5 {[%emt 0:00:09]} 43. Qb4 {[%emt 0:00:10]} Qxb4 {[%emt 0:00:39]} 44. axb4 {[%emt 0:00:01]} Rc7 {[%emt 0:00:01]} 45. Rd1 {[%emt 0:00:15]} Rc2 {[%emt 0:00:06]} 46. Kg1 {[%emt 0:00:03]} Rb2 {[%emt 0:00:10]} 47. Rd6 {[%emt 0:00:18]} Bc4 {[%emt 0:00:20]} 48. Rb6 {[%emt 0:00:07]} Rb1+ {[%emt 0:00:13]} 49. Kh2 {[%emt 0:00:08]} Rb2 {[%emt 0:00:01]} 50. Rxb7+ {[%emt 0:00:04]} Kh8 {[%emt 0:00:00]} 51. Rb8+ {[%emt 0:00:04]} Kg7 {[%emt 0:00:02]} 52. Kg1 {[%emt 0:00:05]} Rb1+ {[%emt 0:00:05]} 53. Kh2 {[%emt 0:00:05]} Rb2 {[%emt 0:00:01]} 54. Kg1 {[%emt 0:00:22]} Rb1+ {[%emt 0:00:02]} 55. Kf2 {[%emt 0:00:02]} Rb2+ {[%emt 0:00:02]} 56. Kg1 {[%emt 0:00:35]} 1/2-1/2

[Event "FIDE Women World Rapid 2024"]
[Site "New York"]
[Date "2024.12.27"]
[Round "7.3"]
[White "Lei, Tingjie"]
[Black "Garifullina, Leya"]
[Result "1-0"]
[ECO "B51"]
[WhiteElo "2549"]
[BlackElo "2451"]
[Annotator "ChessBase"]
[PlyCount "107"]
[EventDate "2024.12.14"]
[EventType "swiss"]
[EventCountry "USA"]
[SourceTitle "playchess.com"]
[Source "ChessBase"]
[SourceQuality "1"]
[TimeControl "900+10"]

1. e4 {[%emt 0:00:02]} c5 {[%emt 0:00:01]} 2. Nf3 {[%emt 0:00:01]} d6 {[%emt 0:00:01]} 3. Bb5+ {[%emt 0:00:02]} Nd7 {[%emt 0:00:02]} 4. O-O {[%emt 0:00:02]} a6 {[%emt 0:00:03]} 5. Bxd7+ {[%emt 0:00:02]} Bxd7 {[%emt 0:00:01]} 6. c3 {[%emt 0:00:02]} Nf6 {[%emt 0:00:04]} 7. Re1 {[%emt 0:00:02]} e6 {[%emt 0:00:01]} 8. d4 {[%emt 0:00:02]} Be7 {[%emt 0:00:10]} 9. e5 {[%emt 0:00:24]} dxe5 {[%emt 0:00:03]} 10. dxe5 {[%emt 0:00:03]} Nd5 {[%emt 0:00:01]} 11. c4 {[%emt 0:00:27]} Nb6 {[%emt 0:00:01]} 12. Qe2 {[%emt 0:00:15]} Bc6 {[%emt 0:00:04]} 13. Nc3 {[%emt 0:00:11]} O-O {[%emt 0:00:29]} 14. Ne4 {[%emt 0:00:36]} Qc7 {[%emt 0:00:15]} 15. Bf4 {[%emt 0:00:06]} Bxe4 {[%emt 0:00:18]} 16. Qxe4 {[%emt 0:00:01]} h6 {[%emt 0:00:19]} 17. h4 {[%emt 0:00:36]} Rfd8 {[%emt 0:00:05]} 18. Be3 {[%emt 0:02:25]} Bf8 {[%emt 0:02:00]} 19. g4 {[%emt 0:00:57]} Qc6 {[%emt 0:02:38]} 20. Qxc6 {[%emt 0:00:21]} bxc6 {[%emt 0:00:02]} 21. b3 {[%emt 0:01:30]} a5 {[%emt 0:00:02]} 22. Nd2 {[%emt 0:00:45]} a4 {[%emt 0:00:03]} 23. Ne4 {[%emt 0:00:54]} Nd7 {[%emt 0:00:59]} 24. f4 {[%emt 0:00:30]} Rdb8 {[%emt 0:00:04]} 25. Rad1 {[%emt 0:01:03]} Ra7 {[%emt 0:00:41]} 26. Rd3 {[%emt 0:00:11]} axb3 {[%emt 0:00:02]} 27. axb3 {[%emt 0:00:01]} Be7 {[%emt 0:00:02]} 28. h5 {[%emt 0:00:22]} Kf8 {[%emt 0:00:39]} 29. Kg2 {[%emt 0:00:56]} Ke8 {[%emt 0:00:08]} 30. Kf3 {[%emt 0:00:22]} Ra3 {[%emt 0:00:02]} 31. Nd2 {[%emt 0:00:08]} Rb7 {[%emt 0:00:28]} 32. Rd1 {[%emt 0:00:07]} Nb8 {[%emt 0:01:18]} 33. g5 {[%emt 0:00:44]} Na6 {[%emt 0:00:12]} 34. gxh6 {[%emt 0:00:48]} gxh6 {[%emt 0:00:01]} 35. Rg1 {[%emt 0:00:13]} f5 {[%emt 0:00:54]} 36. exf6 {[%emt 0:00:32]} Bxf6 {[%emt 0:00:02]} 37. Rg6 {[%emt 0:00:02]} Kf7 {[%emt 0:00:19]} 38. Rxh6 {[%emt 0:00:02]} Bg7 {[%emt 0:00:18]} 39. Rg6 {[%emt 0:00:01]} Nb4 {[%emt 0:00:17]} 40. Rd6 {[%emt 0:00:14]} Nc2 {[%emt 0:00:24]} 41. Bxc5 {[%emt 0:00:40]} Ra1 {[%emt 0:00:29]} 42. Ne4 {[%emt 0:00:51]} Rxb3+ {[%emt 0:00:04]} 43. Kg4 {[%emt 0:00:01]} Ne3+ {[%emt 0:01:04]} 44. Bxe3 {[%emt 0:00:01]} Rxe3 {[%emt 0:00:01]} 45. Ng5+ {[%emt 0:00:01]} Ke7 {[%emt 0:00:05]} 46. Rdxe6+ {[%emt 0:00:02]} Rxe6 {[%emt 0:00:04]} 47. Rxe6+ {[%emt 0:00:02]} Kd7 {[%emt 0:00:15]} 48. h6 {[%emt 0:00:01]} Bb2 {[%emt 0:00:09]} 49. h7 {[%emt 0:00:05]} Rh1 {[%emt 0:00:03]} 50. Kf5 {[%emt 0:00:07]} Bc3 {[%emt 0:00:36]} 51. Re3 {[%emt 0:00:05]} Bb2 {[%emt 0:00:11]} 52. Kg6 {[%emt 0:00:08]} Kd6 {[%emt 0:00:20]} 53. f5 {[%emt 0:00:15]} Bc1 {[%emt 0:01:08]} 54. Rh3 {[%emt 0:00:12]} 1-0

[Event "FIDE Women World Rapid 2024"]
[Site "New York"]
[Date "2024.12.27"]
[Round "7.3"]
[White "Skripchenko, Almira"]
[Black "Mamedjarova, Zeinab"]
[Result "0-1"]
[ECO "B01"]
[WhiteElo "2364"]
[BlackElo "2145"]
[Annotator "ChessBase"]
[PlyCount "72"]
[EventDate "2024.12.14"]
[EventType "swiss"]
[EventCountry "USA"]
[SourceTitle "playchess.com"]
[Source "ChessBase"]
[SourceQuality "1"]
[TimeControl "900+10"]

1. e4 {[%emt 0:00:01]} d5 {[%emt 0:00:03]} 2. exd5 {[%emt 0:00:03]} Qxd5 {[%emt 0:00:01]} 3. Nc3 {[%emt 0:00:03]} Qd8 {[%emt 0:00:00]} 4. d4 {[%emt 0:00:05]} Nf6 {[%emt 0:00:01]} 5. Bg5 {[%emt 0:01:20]} e6 {[%emt 0:00:25]} 6. Nf3 {[%emt 0:00:08]} Be7 {[%emt 0:00:01]} 7. Bd3 {[%emt 0:00:12]} O-O {[%emt 0:00:15]} 8. Qe2 {[%emt 0:00:12]} Nbd7 {[%emt 0:00:21]} 9. O-O-O {[%emt 0:00:12]} Nd5 {[%emt 0:01:03]} 10. Ne4 {[%emt 0:00:02]} Nb4 {[%emt 0:01:11]} 11. a3 {[%emt 0:00:57]} Nxd3+ {[%emt 0:00:06]} 12. Rxd3 {[%emt 0:00:17]} b6 {[%emt 0:00:13]} 13. Bd2 {[%emt 0:00:52]} Ba6 {[%emt 0:00:16]} 14. h4 {[%emt 0:00:12]} Nf6 {[%emt 0:01:22]} 15. Nfg5 {[%emt 0:01:34]} Qd5 {[%emt 0:01:57]} 16. f3 {[%emt 0:00:06]} Rfd8 {[%emt 0:01:38]} 17. Be3 {[%emt 0:01:47]} Qa2 {[%emt 0:01:14]} 18. Nc3 {[%emt 0:00:13]} Qa1+ {[%emt 0:01:05]} 19. Nb1 {[%emt 0:00:02]} c5 {[%emt 0:00:17]} 20. Re1 {[%emt 0:04:00]} cxd4 {[%emt 0:02:03]} 21. Bf2 {[%emt 0:00:45]} Rac8 {[%emt 0:01:36]} 22. Qd2 {[%emt 0:01:55]} Bxd3 {[%emt 0:00:53]} 23. Qxd3 {[%emt 0:00:01]} Rc7 {[%emt 0:00:12]} 24. Bg3 {[%emt 0:00:21]} Rc6 {[%emt 0:00:14]} 25. Be5 {[%emt 0:00:09]} h6 {[%emt 0:00:38]} 26. Ne4 {[%emt 0:01:24]} Nd7 {[%emt 0:00:31]} 27. Qxd4 {[%emt 0:01:11]} Nc5 {[%emt 0:00:09]} 28. Qc4 {[%emt 0:00:51]} Nd3+ {[%emt 0:00:13]} 29. cxd3 {[%emt 0:00:02]} Rxc4+ {[%emt 0:00:07]} 30. dxc4 {[%emt 0:00:01]} Bxa3 {[%emt 0:00:20]} 31. Bc3 {[%emt 0:01:02]} Be7 {[%emt 0:00:08]} 32. g3 {[%emt 0:00:09]} Qa4 {[%emt 0:00:17]} 33. Ned2 {[%emt 0:00:02]} Bb4 {[%emt 0:00:06]} 34. Bxb4 {[%emt 0:00:15]} Qxb4 {[%emt 0:00:02]} 35. Re3 {[%emt 0:00:06]} Qc5 {[%emt 0:00:07]} 36. Rc3 {[%emt 0:00:05]} Qg1+ {[%emt 0:00:05]} 0-1

[Event "FIDE Women World Rapid 2024"]
[Site "New York"]
[Date "2024.12.27"]
[Round "7.4"]
[White "Koneru, Humpy"]
[Black "Munkhzul, Turmunkh"]
[Result "1-0"]
[ECO "E60"]
[WhiteElo "2523"]
[BlackElo "2301"]
[Annotator "ChessBase"]
[PlyCount "57"]
[EventDate "2024.12.14"]
[EventType "swiss"]
[EventCountry "USA"]
[SourceTitle "playchess.com"]
[Source "ChessBase"]
[SourceQuality "1"]
[TimeControl "900+10"]

1. d4 {[%emt 0:00:02]} Nf6 {[%emt 0:00:01]} 2. Nf3 {[%emt 0:00:02]} g6 {[%emt 0:00:03]} 3. e3 {[%emt 0:00:02]} Bg7 {[%emt 0:00:04]} 4. Be2 {[%emt 0:00:02]} O-O {[%emt 0:00:05]} 5. O-O {[%emt 0:00:03]} d6 {[%emt 0:00:03]} 6. b3 {[%emt 0:00:51]} Nbd7 {[%emt 0:01:19]} 7. Bb2 {[%emt 0:00:04]} c6 {[%emt 0:00:44]} 8. c4 {[%emt 0:00:16]} Qc7 {[%emt 0:00:08]} 9. Nc3 {[%emt 0:00:18]} Re8 {[%emt 0:00:26]} 10. b4 {[%emt 0:03:44]} e5 {[%emt 0:00:09]} 11. dxe5 {[%emt 0:00:25]} dxe5 {[%emt 0:00:08]} 12. Nd2 {[%emt 0:00:21]} Nf8 {[%emt 0:00:55]} 13. c5 {[%emt 0:00:53]} Rd8 {[%emt 0:01:47]} 14. Qc1 {[%emt 0:00:47]} Bg4 {[%emt 0:01:30]} 15. Bxg4 {[%emt 0:00:40]} Nxg4 {[%emt 0:00:01]} 16. Nce4 {[%emt 0:00:09]} Ne6 {[%emt 0:02:48]} 17. Nf3 {[%emt 0:02:14]} b5 {[%emt 0:02:08]} 18. Bc3 {[%emt 0:00:44]} f5 {[%emt 0:00:17]} 19. Nd6 {[%emt 0:01:05]} e4 {[%emt 0:00:03]} 20. Nd4 {[%emt 0:00:17]} Nf8 {[%emt 0:02:15]} 21. Qc2 {[%emt 0:02:31]} Rd7 {[%emt 0:00:45]} 22. a4 {[%emt 0:00:15]} Rb8 {[%emt 0:00:44]} 23. axb5 {[%emt 0:00:08]} cxb5 {[%emt 0:00:01]} 24. Ra6 {[%emt 0:00:07]} Be5 {[%emt 0:01:33]} 25. h3 {[%emt 0:00:04]} Bxd6 {[%emt 0:00:09]} 26. cxd6 {[%emt 0:00:16]} Qb7 {[%emt 0:00:05]} 27. Qa2+ {[%emt 0:00:04]} Rf7 {[%emt 0:00:21]} 28. hxg4 {[%emt 0:00:04]} fxg4 {[%emt 0:00:07]} 29. Nc6 {[%emt 0:00:05]} 1-0

[Event "FIDE Women World Rapid 2024"]
[Site "New York"]
[Date "2024.12.27"]
[Round "7.4"]
[White "Kiolbasa, Oliwia"]
[Black "Kaliakhmet, Elnaz"]
[Result "1-0"]
[ECO "B31"]
[WhiteElo "2371"]
[BlackElo "2113"]
[Annotator "ChessBase"]
[PlyCount "57"]
[EventDate "2024.12.14"]
[EventType "swiss"]
[EventCountry "USA"]
[SourceTitle "playchess.com"]
[Source "ChessBase"]
[SourceQuality "1"]
[TimeControl "900+10"]

1. e4 {[%emt 0:00:03]} c5 {[%emt 0:00:01]} 2. Nf3 {[%emt 0:00:02]} Nc6 {[%emt 0:00:01]} 3. Bb5 {[%emt 0:00:06]} g6 {[%emt 0:00:02]} 4. d3 {[%emt 0:00:11]} Bg7 {[%emt 0:00:03]} 5. Nc3 {[%emt 0:00:02]} Nd4 {[%emt 0:00:28]} 6. Bc4 {[%emt 0:01:10]} e6 {[%emt 0:00:05]} 7. Nxd4 {[%emt 0:00:36]} cxd4 {[%emt 0:00:08]} 8. Ne2 {[%emt 0:00:04]} d5 {[%emt 0:00:57]} 9. exd5 {[%emt 0:00:35]} exd5 {[%emt 0:00:02]} 10. Bb3 {[%emt 0:01:50]} Ne7 {[%emt 0:00:04]} 11. O-O {[%emt 0:00:08]} O-O {[%emt 0:00:03]} 12. Nf4 {[%emt 0:00:01]} Qd6 {[%emt 0:01:16]} 13. Qf3 {[%emt 0:00:38]} Be6 {[%emt 0:03:42]} 14. Re1 {[%emt 0:00:17]} Rad8 {[%emt 0:00:09]} 15. Bd2 {[%emt 0:00:47]} Nc6 {[%emt 0:00:29]} 16. h3 {[%emt 0:00:46]} b5 {[%emt 0:00:54]} 17. a4 {[%emt 0:00:24]} b4 {[%emt 0:00:09]} 18. a5 {[%emt 0:00:18]} a6 {[%emt 0:00:11]} 19. Re2 {[%emt 0:02:10]} Qc5 {[%emt 0:01:26]} 20. Ra4 {[%emt 0:01:40]} Qd6 {[%emt 0:03:39]} 21. Qg3 {[%emt 0:00:46]} Be5 {[%emt 0:01:10]} 22. Qh4 {[%emt 0:00:22]} Rfe8 {[%emt 0:00:51]} 23. Ra1 {[%emt 0:00:27]} Qc7 {[%emt 0:01:09]} 24. Rae1 {[%emt 0:00:43]} Bd7 {[%emt 0:01:38]} 25. Nxd5 {[%emt 0:00:47]} Qd6 {[%emt 0:00:02]} 26. Bg5 {[%emt 0:00:33]} Rc8 {[%emt 0:00:34]} 27. Rxe5 {[%emt 0:00:40]} Rxe5 {[%emt 0:00:10]} 28. Rxe5 {[%emt 0:00:09]} Qxe5 {[%emt 0:00:08]} 29. Nf6+ {[%emt 0:00:05]} 1-0